fUST/lending_fUST_20250604
["ID","MTS","AMOUNT","RATE_DAILY","PERIOD"]
[364163718,1749024639126,-440.0,0.00020813,2]
[364163719,1749024639137,-440.0,0.00020814,2]
[364163720,1749024639150,-762.77,0.00020814,2]
[364163721,1749024639162,-400.0,0.00020814,2]
[364163722,1749024639173,-440.0,0.00020814,2]
[364163723,1749024639185,-400.0,0.00020814,2]
[364163724,1749024639197,-190.80466863,0.00020814,2]
[364163725,1749024639210,-840.66,0.00020814,2]
[364163726,1749024639220,-360.0,0.00020814,2]
[364163727,1749024639231,-440.0,0.00020814,2]
[364163728,1749024639242,-400.0,0.00020814,2]
[364163729,1749024639252,-440.0,0.00020814,2]
[364163730,1749024639263,-500.0,0.00020814,2]
[364163731,1749024639273,-440.0,0.00020815,2]
[364163732,1749024639286,-551.08,0.00020815,2]
[364163733,1749024639300,-440.0,0.00020815,2]
[364163734,1749024639312,-440.0,0.00020815,2]
[364163735,1749024639324,-440.0,0.00020815,2]
[364163736,1749024639335,-507.06452997,0.00020868,2]
[364163737,1749024639346,-327.29842329,0.000209,4]
[364163738,1749024639358,-508.54380695,0.00020966,2]
[364163739,1749024639368,-1000.0,0.00021,2]
[364163740,1749024639384,-327.29842317,0.00021038,4]
[364163741,1749024639395,-571.49,0.00021087,2]
[364163742,1749024639407,-440.0,0.00021087,2]
[364163743,1749024639418,-440.0,0.00021088,2]
[364163744,1749024639430,-762.77,0.00021088,2]
[364163745,1749024639440,-440.0,0.00021088,2]
[364163746,1749024639453,-840.66,0.00021088,2]
[364163747,1749024639463,-440.0,0.00021088,2]
[364163748,1749024639476,-440.0,0.00021088,2]
[364163749,1749024639488,-360.0,0.00021089,2]
[364163750,1749024639503,-551.08,0.00021089,2]
[364163751,1749024639515,-440.0,0.00021089,2]
[364163752,1749024639527,-440.0,0.00021089,2]
[364163753,1749024639539,-659.09,0.000211,2]
[364163754,1749024639552,-600.0,0.00021164,2]
[364163755,1749024639564,-327.29842317,0.00021176,4]
[364163756,1749024639575,-840.336789,0.00021264,3]
[364163757,1749024639586,-327.29842317,0.00021314,5]
[364163758,1749024639599,-571.49,0.00021361,2]
[364163759,1749024639610,-283.8,0.00021361,2]
[364163760,1749024639621,-440.0,0.00021362,2]
[364163761,1749024639634,-762.77,0.00021362,2]
[364163762,1749024639645,-440.0,0.00021362,2]
[364163763,1749024639656,-840.66,0.00021362,2]
[364163764,1749024639668,-472.83,0.00021362,2]
[364163765,1749024639681,-440.0,0.00021362,2]
[364163766,1749024639692,-500.0,0.00021362,2]
[364163767,1749024639705,-551.08,0.00021363,2]
[364163769,1749024639716,-440.0,0.00021363,2]
[364163771,1749024639727,-440.0,0.00021363,2]
[364163773,1749024639738,-327.29842317,0.00021452,5]
[364163775,1749024639749,-160.0,0.00021533,2]
[364163777,1749024639760,-160.0,0.00021534,2]
[364163779,1749024639771,-229.45591648,0.00021534,2]
[364163781,1749024639782,-507.27027264,0.00021561,2]
[364163782,1749024639793,-500.0,0.00021561,2]
[364163783,1749024639804,-503.67587005,0.00021561,2]
[364163784,1749024639815,-464.25,0.00021571,3]
[364163786,1749024639825,-232.13,0.00021571,3]
[364163787,1749024639836,-500.0,0.0002158,2]
[364163788,1749024639847,-500.0,0.0002158,2]
[364163789,1749024639858,-702.21781428,0.0002158,2]
[364163790,1749024639869,-702.21781428,0.0002158,2]
[364163791,1749024639883,-702.21781428,0.0002158,2]
[364163792,1749024639893,-500.0,0.0002158,2]
[364163793,1749024639904,-435.81399414,0.0002158,2]
[364163794,1749024639919,-64.18600586,0.0002158,2]
[364163795,1749024639930,-500.0,0.0002158,2]
[364163796,1749024639941,-702.21781428,0.0002158,2]
[364163797,1749024639954,-500.0,0.0002158,2]
[364163798,1749024639964,-702.21781428,0.0002158,2]
[364163799,1749024639975,-702.21781428,0.0002158,2]
[364163800,1749024639986,-500.0,0.0002158,2]
[364163801,1749024639996,-500.0,0.0002158,2]
[364163802,1749024640008,-702.21781428,0.0002158,2]
[364163803,1749024640018,-500.0,0.0002158,2]
[364163804,1749024640029,-500.0,0.0002158,2]
[364163805,1749024640040,-702.21781428,0.0002158,2]
[364163806,1749024640051,-702.21781428,0.0002158,2]
[364163807,1749024640062,-32927.29323312,0.00021581,2]
[364163808,1749024640110,153.89,0.000247,31]
[364163809,1749024640157,153.89,0.000247,31]
[364163814,1749024640354,153.89,0.000247,31]
[364163819,1749024640398,153.89,0.000247,31]
[364163825,1749024640440,153.89,0.000247,31]
[364163830,1749024640481,153.89,0.000247,31]
[364163835,1749024640523,153.89,0.00024,31]
[364163840,1749024640565,153.89,0.00024,31]
[364163846,1749024640607,153.89,0.00024,31]
[364163851,1749024640650,153.89,0.00024,31]
[364163856,1749024640693,153.89,0.00024,31]
[364163862,1749024640735,153.89,0.00024,31]
[364163867,1749024640777,153.89,0.00024,31]
[364163872,1749024640817,153.89,0.00024,31]
[364163877,1749024640858,153.89,0.00024,31]
[364163882,1749024640902,153.89,0.00024,31]
[364163885,1749024640919,-463.43,0.00021571,10]
[364163887,1749024640929,-874.54472141,0.00021581,2]
[364163889,1749024640940,-824.95454347,0.00021581,2]
[364163892,1749024640953,-4096.69132452,0.00021581,2]
[364164105,1749024643257,-29669.24409155,0.00021581,2]
[364164106,1749024643269,-7612.13555972,0.00021581,2]
[364164107,1749024643320,-440.0,0.00019991,2]
[364164108,1749024643329,-2565.22503102,0.00021581,2]
[364164109,1749024643341,-14771.93119025,0.00021581,2]
[364164110,1749024643395,-8.71199887,0.00021581,2]
[364164405,1749024646334,-440.0,0.00020265,2]
[364164407,1749024646344,-334.90751728,0.00020539,2]
[364164413,1749024646388,-105.09248272,0.00020539,2]
[364164415,1749024646399,-440.0,0.00020813,2]
[364164417,1749024646409,-440.0,0.00021087,2]
[364164419,1749024646418,-162.08,0.00021361,2]
[364164421,1749024646428,-361710.70179391,0.00021581,2]
[364166560,1749024751789,200.0,0.00024033,120]
[364166565,1749024804089,273.0,0.00024125,120]
[364166567,1749024871655,200.0,0.0002416,120]
[364166569,1749024933963,229.45591648,0.00025,30]
[364166570,1749024976860,163.107502,0.00013699,2]
[364166573,1749024992082,200.0,0.00024712,120]
[364166574,1749025039886,5000.0,0.00025,30]
[364166575,1749025044862,5000.0,0.00025,30]
[364166576,1749025048972,5000.0,0.00025,30]
[364166577,1749025051200,200.0,0.0002393,120]
[364166580,1749025076153,4658.68236397,0.00025,30]
[364166586,1749025244743,153.94,0.000247,31]
[364166587,1749025244798,153.94,0.000247,31]
[364166588,1749025244852,153.94,0.000247,31]
[364166589,1749025244923,153.94,0.000247,31]
[364166590,1749025244967,153.94,0.000247,31]
[364166591,1749025245041,153.94,0.000247,31]
[364166592,1749025245106,153.94,0.000247,31]
[364166593,1749025245164,153.94,0.000247,31]
[364166594,1749025245225,153.94,0.000247,31]
[364166595,1749025245282,153.94,0.000247,31]
[364166596,1749025245348,153.94,0.00024,31]
[364166597,1749025245402,153.94,0.00024,31]
[364166598,1749025245472,153.94,0.00024,31]
[364166599,1749025245661,153.94,0.00024,31]
[364166600,1749025245702,153.94,0.00024,31]
[364166602,1749025351291,200.0,0.00023748,120]
[364166603,1749025353971,13787.69837619,0.00025,30]
[364166604,1749025411288,200.0,0.00024948,120]
[364166605,1749025471553,200.0,0.00024286,120]
[364166608,1749025531129,200.0,0.00024278,120]
[364166609,1749025556892,229.45591648,0.00025,30]
[364166632,1749025677065,1079.0,0.00025,120]
[364166635,1749025711419,200.0,0.0002402,120]
[364166672,1749025762274,6000.0,0.00024999,30]
[364166674,1749025771201,200.0,0.0002442,120]
[364166677,1749025796642,6000.0,0.00024999,30]
[364166737,1749025832471,-166.53057958,0.00019391,2]
[364166739,1749025832480,-286.30369627,0.000199,2]
[364166741,1749025832490,-300.0,0.0001999,2]
[364166743,1749025832499,-440.0,0.0001999,2]
[364166745,1749025832510,-440.0,0.0001999,2]
[364166747,1749025832521,-430.0,0.0001999,2]
[364166748,1749025832530,-440.0,0.0001999,2]
[364166749,1749025832542,-450.35244279,0.0001999,2]
[364166751,1749025832553,-756.11,0.0001999,2]
[364166753,1749025832564,-430.0,0.0001999,2]
[364166755,1749025832573,-430.0,0.0001999,2]
[364166757,1749025832583,-430.0,0.0001999,2]
[364166759,1749025832592,-400.6395,0.0001999,2]
[364166761,1749025832601,-430.0,0.0001999,2]
[364166763,1749025832611,-430.0,0.0001999,2]
[364166764,1749025832620,-430.0,0.0001999,2]
[364166766,1749025832630,-430.0,0.0001999,2]
[364166768,1749025832640,-430.0,0.0001999,2]
[364166770,1749025832650,-430.0,0.0001999,2]
[364166771,1749025832660,-440.0,0.0001999,2]
[364166773,1749025832669,-440.0,0.0001999,2]
[364166775,1749025832678,-430.0,0.0001999,2]
[364166776,1749025832688,-546.74,0.0001999,2]
[364166777,1749025832698,-440.0,0.0001999,2]
[364166778,1749025832708,-414.84768031,0.0001999,2]
[364166779,1749025832718,-353.62,0.0001999,2]
[364166780,1749025832728,-714.46,0.0001999,2]
[364166781,1749025832738,-423.69433488,0.00019991,2]
[364166782,1749025832748,-229.45591648,0.00019991,2]
[364166783,1749025832758,-160.0,0.00019991,2]
[364166784,1749025832768,-430.0,0.00019991,2]
[364166785,1749025832777,-165.021,0.00019991,2]
[364166786,1749025832789,-273.42,0.00019991,2]
[364166787,1749025832798,-461.47155028,0.00019991,2]
[364166788,1749025832808,-430.0,0.00019991,2]
[364166789,1749025832818,-430.0,0.00019991,2]
[364166790,1749025832829,-510.4,0.00019991,2]
[364166791,1749025832845,-430.0,0.00019991,2]
[364166792,1749025832855,-430.0,0.00019991,2]
[364166793,1749025832865,-440.0,0.00019991,2]
[364166794,1749025832875,-430.0,0.00019991,2]
[364166795,1749025832885,-560.89,0.00019991,2]
[364166796,1749025832895,-304.91553664,0.00019991,2]
[364166797,1749025832906,-430.0,0.00019991,2]
[364166798,1749025832916,-430.0,0.00019991,2]
[364166799,1749025832926,-430.0,0.00019991,2]
[364166800,1749025832936,-430.0,0.00019991,2]
[364166801,1749025832947,-430.0,0.00019991,2]
[364166802,1749025832957,-212.52,0.00019991,2]
[364166803,1749025832967,-430.0,0.00019991,2]
[364166804,1749025832977,-430.0,0.00019991,2]
[364166805,1749025832987,-463.38672237,0.00019991,2]
[364166806,1749025832997,-430.0,0.00019991,2]
[364166807,1749025833007,-440.0,0.00019991,2]
[364166808,1749025833017,-440.0,0.00019991,2]
[364166809,1749025833027,-264.46,0.00019991,2]
[364166810,1749025833038,-5345.51,0.00019991,2]
[364166811,1749025833048,-440.0,0.00019991,2]
[364166812,1749025833058,-430.0,0.00019991,2]
[364166813,1749025833069,-430.0,0.00019991,2]
[364166814,1749025833080,-158.58,0.00019991,2]
[364166815,1749025833091,-440.0,0.00019991,2]
[364166816,1749025833102,-440.0,0.00019991,2]
[364166817,1749025833113,-430.0,0.00019991,2]
[364166818,1749025833123,-430.0,0.00019991,2]
[364166819,1749025833133,-495.54,0.00019991,2]
[364166820,1749025833144,-440.0,0.00019991,2]
[364166821,1749025833155,-430.0,0.00019991,2]
[364166822,1749025833165,-243.55685996,0.00019991,2]
[364166823,1749025833175,-430.0,0.00019991,2]
[364166824,1749025833185,-430.0,0.00019991,2]
[364166825,1749025833197,-427.92,0.00019991,2]
[364166826,1749025833207,-376.32,0.00019991,2]
[364166827,1749025833218,-430.0,0.00019991,2]
[364166828,1749025833229,-430.0,0.00019991,2]
[364166829,1749025833239,-430.0,0.00019991,2]
[364166830,1749025833249,-430.0,0.00019991,2]
[364166831,1749025833261,-430.0,0.00019991,2]
[364166832,1749025833272,-440.0,0.00019991,2]
[364166833,1749025833282,-430.0,0.00019991,2]
[364166834,1749025833293,-430.0,0.00019991,2]
[364166835,1749025833303,-440.0,0.00019991,2]
[364166836,1749025833314,-440.0,0.00019991,2]
[364166837,1749025833323,-430.0,0.00019991,2]
[364166838,1749025833332,-222.64,0.00019991,2]
[364166839,1749025833343,-430.0,0.00019991,2]
[364166840,1749025833353,-430.0,0.00019991,2]
[364166841,1749025833362,-502.9,0.00019992,2]
[364166842,1749025833372,-430.0,0.00019992,2]
[364166843,1749025833382,-440.0,0.00019992,2]
[364166844,1749025833391,-430.0,0.00019992,2]
[364166845,1749025833401,-435.60604679,0.00019994,2]
[364166846,1749025833411,-430.0,0.00019994,2]
[364166847,1749025833422,-430.0,0.00019994,2]
[364166848,1749025833433,-455.62787558,0.00019994,2]
[364166849,1749025833444,-468.31550143,0.00019994,2]
[364166850,1749025833453,-440.0,0.00019994,2]
[364166851,1749025833463,-440.0,0.00019994,2]
[364166852,1749025833473,-153.47862959,0.0002,4]
[364166853,1749025833482,-286.30369622,0.00020072,2]
[364166854,1749025833628,-286.30369622,0.00020245,2]
[364166855,1749025833639,-440.0,0.00020264,2]
[364166856,1749025833651,-440.0,0.00020264,2]
[364166857,1749025833661,-440.0,0.00020264,2]
[364166858,1749025833671,-756.11,0.00020264,2]
[364166859,1749025833682,-420.0,0.00020264,2]
[364166860,1749025833693,-440.0,0.00020264,2]
[364166861,1749025833703,-546.74,0.00020264,2]
[364166862,1749025833714,-420.0,0.00020264,2]
[364166863,1749025833725,-714.46,0.00020264,2]
[364166864,1749025833735,-420.0,0.00020265,2]
[364166865,1749025833746,-440.0,0.00020265,2]
[364166866,1749025833756,-440.0,0.00020265,2]
[364166867,1749025833767,-5345.51,0.00020265,2]
[364166868,1749025833778,-440.0,0.00020265,2]
[364166869,1749025833787,-420.0,0.00020265,2]
[364166870,1749025833798,-440.0,0.00020265,2]
[364166871,1749025833808,-420.0,0.00020265,2]
[364166872,1749025833818,-420.0,0.00020265,2]
[364166873,1749025833829,-535.84,0.00020265,2]
[364166874,1749025833839,-440.0,0.00020265,2]
[364166875,1749025833849,-440.0,0.00020266,2]
[364166876,1749025833859,-440.0,0.00020268,2]
[364166877,1749025833869,-306.52231408,0.00020268,2]
[364166878,1749025833879,-511.28541419,0.00020354,2]
[364166879,1749025833890,-500.0,0.00020354,2]
[364166880,1749025833900,-500.10828756,0.00020383,2]
[364166881,1749025833910,-286.30369622,0.00020417,3]
[364166882,1749025833919,-336.04,0.00020538,2]
[364166883,1749025833930,-440.0,0.00020538,2]
[364166884,1749025833940,-410.0,0.00020538,2]
[364166885,1749025833950,-756.11,0.00020538,2]
[364166886,1749025833961,-410.0,0.00020538,2]
[364166887,1749025833970,-546.74,0.00020538,2]
[364166888,1749025833980,-714.46,0.00020538,2]
[364166889,1749025833990,-440.0,0.00020539,2]
[364166890,1749025834000,-440.0,0.00020539,2]
[364166891,1749025834009,-5345.51,0.00020539,2]
[364166892,1749025834019,-440.0,0.00020539,2]
[364166893,1749025834029,-440.0,0.00020539,2]
[364166894,1749025834039,-340.0,0.00020539,2]
[364166895,1749025834049,-440.0,0.0002054,2]
[364166896,1749025834059,-511.69,0.00020542,2]
[364166897,1749025834070,-286.30369622,0.0002059,3]
[364166898,1749025834080,-208.8939346,0.00020638,2]
[364166899,1749025834089,-430.0,0.00020639,2]
[364166900,1749025834099,-207.4,0.00020639,2]
[364166901,1749025834109,-5000.0,0.00020639,2]
[364166902,1749025834120,-286.30369622,0.00020762,3]
[364166903,1749025834130,-271.6,0.00020812,2]
[364166904,1749025834141,-756.11,0.00020812,2]
[364166905,1749025834151,-546.74,0.00020812,2]
[364166906,1749025834162,-714.46,0.00020812,2]
[364166907,1749025834172,-440.0,0.00020813,2]
[364166908,1749025834183,-440.0,0.00020813,2]
[364166909,1749025834194,-1575.82211328,0.00020813,2]
[364166910,1749025834319,-2723.3991735,0.00020813,2]
[364166911,1749025834332,-1046.28871322,0.00020813,2]
[364166912,1749025834347,-440.0,0.00020813,2]
[364166913,1749025834363,-440.0,0.00020813,2]
[364166914,1749025834374,-70.58628678,0.00020814,2]
[364166915,1749025834387,-122.73125933,0.00020814,2]
[364166916,1749025834400,-500.0,0.00020902,2]
[364166917,1749025834411,-286.30369622,0.00020934,4]
[364166918,1749025834422,-120.64561445,0.00020951,2]
[364168031,1749025848995,153.99,0.000247,31]
[364168038,1749025849053,153.99,0.000247,31]
[364168047,1749025849132,153.99,0.000247,31]
[364168053,1749025849177,153.99,0.000247,31]
[364168060,1749025849236,153.99,0.000247,31]
[364168067,1749025849299,153.99,0.000247,31]
[364168074,1749025849359,153.99,0.00024,31]
[364168082,1749025849424,153.99,0.00024,31]
[364168089,1749025849482,153.99,0.00024,31]
[364168096,1749025849542,153.99,0.00024,31]
[364169427,1749025891122,200.0,0.00024546,120]
[364169430,1749026011352,200.0,0.00024273,120]
[364169433,1749026220790,3035.71,0.00025,30]
[364169434,1749026251244,200.0,0.00024403,120]
[364169435,1749026270916,165.534526,0.00013699,2]
[364169437,1749026310721,200.0,0.00024546,120]
[364169440,1749026370771,200.0,0.00023625,120]
[364169441,1749026430927,200.0,0.00023923,120]
[364169442,1749026452315,154.04,0.000247,31]
[364169443,1749026452374,154.04,0.000247,31]
[364169444,1749026452429,154.04,0.00024,31]
[364169445,1749026452499,154.04,0.00024,31]
[364169446,1749026452560,154.04,0.00024,31]
[364169447,1749026452612,154.04,0.00024,31]
[364169448,1749026452679,154.04,0.00024,31]
[364169449,1749026452736,154.04,0.00024,31]
[364169450,1749026452797,154.04,0.00024,31]
[364169451,1749026452857,154.04,0.00024,31]
[364169452,1749026490775,200.0,0.00023266,120]
[364169458,1749026564835,4000.0,0.00025,30]
[364169465,1749026611063,200.0,0.00023306,120]
[364169470,1749026657988,300.0,0.00025,120]
[364169471,1749026670888,200.0,0.00023482,120]
[364169472,1749026686648,679.0,0.00025,120]
[364169473,1749026701488,600.0,0.00025,120]
[364169474,1749026730745,200.0,0.00024515,120]
[364169475,1749026732367,4000.0,0.00025,30]
[364169480,1749026765133,213.84497751,0.00025,30]
[364169492,1749026778846,6999.0,0.00025,30]
[364169524,1749026851308,200.0,0.00024744,120]
[364169567,1749027032773,-9740.9753145,0.00019143,2]
[364169568,1749027032784,-300.0,0.00019372,2]
[364169569,1749027032793,-300.0,0.00019377,2]
[364169570,1749027032803,-440.0,0.00019894,2]
[364169571,1749027032814,-440.0,0.00019894,2]
[364169572,1749027032823,-440.0,0.00019894,2]
[364169573,1749027032834,-430.0,0.00019894,2]
[364169574,1749027032843,-430.0,0.00019894,2]
[364169575,1749027032853,-430.0,0.00019894,2]
[364169576,1749027032864,-759.43,0.00019894,2]
[364169577,1749027032873,-430.0,0.00019894,2]
[364169578,1749027032883,-440.0,0.00019894,2]
[364169579,1749027032895,-440.0,0.00019894,2]
[364169580,1749027032907,-440.0,0.00019894,2]
[364169581,1749027032918,-430.0,0.00019894,2]
[364169582,1749027032927,-440.0,0.00019894,2]
[364169583,1749027032937,-430.0,0.00019894,2]
[364169584,1749027032947,-430.0,0.00019894,2]
[364169585,1749027032957,-496.88,0.00019894,2]
[364169586,1749027032966,-430.0,0.00019894,2]
[364169587,1749027032976,-512.73,0.00019894,2]
[364169588,1749027032986,-693.84,0.00019894,2]
[364169589,1749027032996,-430.0,0.00019894,2]
[364169590,1749027033005,-440.0,0.00019894,2]
[364169591,1749027033015,-374.59,0.00019894,2]
[364169592,1749027033025,-430.0,0.00019894,2]
[364169593,1749027033036,-430.0,0.00019895,2]
[364169594,1749027033046,-430.0,0.00019895,2]
[364169595,1749027033057,-440.0,0.00019895,2]
[364169596,1749027033067,-440.0,0.00019895,2]
[364169597,1749027033077,-5228.49,0.00019895,2]
[364169598,1749027033087,-430.0,0.00019895,2]
[364169599,1749027033097,-440.71709384,0.00019895,2]
[364169600,1749027033106,-440.0,0.00019895,2]
[364169601,1749027033116,-440.0,0.00019895,2]
[364169602,1749027033127,-440.0,0.00019895,2]
[364169603,1749027033138,-440.0,0.00019895,2]
[364169604,1749027033148,-440.0,0.00019895,2]
[364169605,1749027033159,-440.0,0.00019895,2]
[364169606,1749027033169,-440.0,0.00019895,2]
[364169607,1749027033179,-440.0,0.00019895,2]
[364169608,1749027033189,-440.0,0.00019895,2]
[364169609,1749027033199,-430.0,0.00019895,2]
[364169610,1749027033210,-440.0,0.00019895,2]
[364169611,1749027033219,-430.0,0.00019895,2]
[364169612,1749027033229,-346.70844063,0.00019895,2]
[364169613,1749027033238,-440.0,0.00019895,2]
[364169614,1749027033250,-440.0,0.00019895,2]
[364169615,1749027033260,-440.0,0.00019895,2]
[364169616,1749027033270,-469.55745892,0.00019895,2]
[364169617,1749027033280,-440.0,0.00019895,2]
[364169618,1749027033290,-440.0,0.00019895,2]
[364169619,1749027033301,-440.0,0.00019895,2]
[364169620,1749027033311,-430.0,0.00019895,2]
[364169621,1749027033321,-423.69433488,0.00019898,2]
[364169622,1749027033332,-229.45591648,0.00019898,2]
[364169623,1749027033343,-314.98208564,0.00019902,2]
[364169624,1749027033354,-160.0,0.00019902,2]
[364169625,1749027033365,-165.021,0.00019902,2]
[364169626,1749027033375,-440.0,0.0001999,2]
[364169627,1749027033385,-440.0,0.0001999,2]
[364169628,1749027033396,-440.0,0.0001999,2]
[364169629,1749027033406,-183.62881099,0.0001999,2]
[364169630,1749027033417,-440.0,0.0001999,2]
[364169631,1749027033427,-440.0,0.0001999,2]
[364169632,1749027033437,-440.0,0.0001999,2]
[364169633,1749027033605,-440.0,0.0001999,2]
[364169634,1749027033616,-440.0,0.0001999,2]
[364169635,1749027033626,-349.49,0.0001999,2]
[364169636,1749027033637,-440.0,0.0001999,2]
[364169637,1749027033651,-430.0,0.0001999,2]
[364169638,1749027033660,-440.0,0.0001999,2]
[364169639,1749027033669,-440.0,0.0001999,2]
[364169640,1749027033678,-440.0,0.0001999,2]
[364169641,1749027033690,-793.21,0.0001999,2]
[364169642,1749027033699,-440.0,0.0001999,2]
[364169643,1749027033710,-440.0,0.0001999,2]
[364169644,1749027033721,-211.71367879,0.00019991,2]
[364169645,1749027033732,-430.0,0.00019991,2]
[364169646,1749027033743,-440.0,0.00019991,2]
[364169647,1749027033754,-22323.22049361,0.00020034,2]
[364169648,1749027033765,-440.0,0.00020168,2]
[364169649,1749027033775,-440.0,0.00020168,2]
[364169650,1749027033785,-449.61,0.00020168,2]
[364169651,1749027033795,-759.43,0.00020168,2]
[364169652,1749027033805,-322.99973219,0.00020168,2]
[364169653,1749027033814,-420.0,0.00020168,2]
[364169654,1749027033825,-420.0,0.00020168,2]
[364169655,1749027033835,-420.0,0.00020168,2]
[364169656,1749027033845,-512.73,0.00020168,2]
[364169657,1749027033855,-693.84,0.00020168,2]
[364169658,1749027033865,-420.0,0.00020168,2]
[364169659,1749027033875,-440.0,0.00020169,2]
[364169660,1749027033885,-440.0,0.00020169,2]
[364169661,1749027033894,-5228.49,0.00020169,2]
[364169662,1749027033904,-420.0,0.00020169,2]
[364169663,1749027033914,-440.0,0.00020169,2]
[364169664,1749027033924,-420.0,0.00020169,2]
[364169665,1749027033934,-420.0,0.00020169,2]
[364169666,1749027033944,-440.0,0.00020169,2]
[364169667,1749027033954,-440.0,0.00020169,2]
[364169668,1749027033964,-420.0,0.00020169,2]
[364169669,1749027033974,-420.0,0.00020169,2]
[364169670,1749027033985,-420.0,0.00020169,2]
[364169671,1749027033997,-440.0,0.00020169,2]
[364169672,1749027034007,-226.15897535,0.00020169,2]
[364169673,1749027034016,-420.0,0.00020169,2]
[364169674,1749027034027,-324.91473207,0.00020169,2]
[364169675,1749027034037,-425.00917691,0.00020169,2]
[364169676,1749027034047,-440.0,0.00020169,2]
[364169677,1749027034057,-420.0,0.00020169,2]
[364169678,1749027034067,-728.4905794,0.000202,2]
[364169679,1749027034078,-311.4582668,0.000202,2]
[364169680,1749027034087,-176.6037853,0.000202,2]
[364169681,1749027034098,-240.0571315,0.000202,2]
[364169682,1749027034108,-153.0,0.000202,2]
[364169683,1749027034118,-572.7197194,0.000202,2]
[364169684,1749027034128,-352.9733984,0.000202,2]
[364169685,1749027034138,-158.575084,0.000202,2]
[364169686,1749027034147,-306.0,0.000202,2]
[364169687,1749027034157,-1144.7984334,0.000202,2]
[364169688,1749027034167,-176.6037853,0.000202,2]
[364169689,1749027034176,-158.575084,0.000202,2]
[364169690,1749027034186,-572.7197194,0.000202,2]
[364169691,1749027034195,-158.575084,0.000202,2]
[364169692,1749027034205,-176.6037853,0.000202,2]
[364169693,1749027034214,-572.7197194,0.000202,2]
[364169694,1749027034227,-420.0,0.00020264,2]
[364169695,1749027034237,-420.0,0.00020264,2]
[364169696,1749027034246,-516.24,0.00020264,2]
[364169697,1749027034257,-420.0,0.00020264,2]
[364169698,1749027034269,-420.0,0.00020264,2]
[364169699,1749027034279,-420.0,0.00020264,2]
[364169700,1749027034289,-420.0,0.00020264,2]
[364169701,1749027034300,-420.0,0.00020264,2]
[364169702,1749027034310,-440.0,0.00020264,2]
[364169703,1749027034321,-440.0,0.00020264,2]
[364169704,1749027034332,-420.0,0.00020264,2]
[364169705,1749027034342,-531.1236136,0.00020264,2]
[364169706,1749027034352,-793.21,0.00020264,2]
[364169707,1749027034362,-440.0,0.00020264,2]
[364169708,1749027034372,-312.65519947,0.00020264,2]
[364169709,1749027034382,-420.0,0.00020265,2]